[Event "Ebbe cup 42"]
[Site "Schackcentrum, Vegatan 20, Gothenburg, Sweden"]
[Date "2022.02.13"]
[Round "5.9"]
[White "Granero Lofgren, Elias"]
[Black "Imani Lasaki, Hamed"]
[Result "1-0"]
[TimeControl "90 minutes for 40 moves + 15 minutes for the rest of the game + 30 seconds per move from move one."]
[WhiteFideId "22207783"]
[BlackFideId "1766970"]
[WhiteElo "1353"]
[BlackElo "1615"]

1. e4 {[%clk 01:30:54]} {[%emt 00:00:05]} c5 {[%clk 01:30:59]} {[%emt
00:00:02]} 2. Nf3 {[%clk 01:31:11]} {[%emt 00:00:13]} Nc6 {[%clk 01:31:01]}
{[%emt 00:00:29]} 3. d4 {[%clk 01:30:32]} {[%emt 00:01:08]} cxd4 {[%clk
01:31:07]} {[%emt 00:00:24]} 4. Nxd4 {[%clk 01:28:31]} {[%emt 00:02:31]} Nf6
{[%clk 01:30:12]} {[%emt 00:01:25]} 5. Nc3 {[%clk 01:28:52]} {[%emt 00:00:08]}
e5 {[%clk 01:27:00]} {[%emt 00:03:44]} 6. Nf5 {[%clk 01:19:58]} {[%emt
00:09:23]} d6 {[%clk 01:24:49]} {[%emt 00:02:42]} 7. Ne3 {[%clk 01:17:05]}
{[%emt 00:03:22]} a6 {[%clk 01:22:59]} {[%emt 00:02:21]} 8. Bc4 {[%clk
01:12:26]} {[%emt 00:05:08]} Nd4 {[%clk 01:19:51]} {[%emt 00:03:39]} 9. Ned5
{[%clk 01:11:13]} {[%emt 00:01:41]} b5 {[%clk 01:16:19]} {[%emt 00:04:03]} 10.
Nxf6+ {[%clk 01:11:26]} {[%emt 00:00:17]} Qxf6 {[%clk 01:09:52]} {[%emt
00:06:56]} 11. Bd5 {[%clk 01:10:22]} {[%emt 00:01:34]} Rb8 {[%clk 01:03:31]}
{[%emt 00:06:51]} 12. Be3 {[%clk 01:08:24]} {[%emt 00:02:28]} Be7 {[%clk
00:59:13]} {[%emt 00:04:48]} 13. Bxd4 {[%clk 01:08:23]} {[%emt 00:00:31]} exd4
{[%clk 00:57:33]} {[%emt 00:02:10]} 14. Ne2 {[%clk 01:07:24]} {[%emt 00:01:29]}
O-O {[%clk 00:47:20]} {[%emt 00:10:44]} 15. Qxd4 {[%clk 00:56:17]} {[%emt
00:11:35]} Qg5 {[%clk 00:38:00]} {[%emt 00:09:51]} 16. f4 {[%clk 00:49:11]}
{[%emt 00:07:36]} Qh6 {[%clk 00:31:19]} {[%emt 00:07:11]} 17. Qa7 {[%clk
00:41:34]} {[%emt 00:08:08]} Bh4+ {[%clk 00:16:22]} {[%emt 00:15:26]} 18. g3
{[%clk 00:40:57]} {[%emt 00:01:07]} Bg4 {[%clk 00:16:05]} {[%emt 00:00:48]} 19.
gxh4 {[%clk 00:39:09]} {[%emt 00:02:17]} Bxe2 {[%clk 00:15:08]} {[%emt
00:01:27]} 20. Kxe2 {[%clk 00:39:20]} {[%emt 00:00:18]} Qxf4 {[%clk 00:13:37]}
{[%emt 00:02:01]} 21. Raf1 {[%clk 00:39:10]} {[%emt 00:00:40]} Qg4+ {[%clk
00:12:35]} {[%emt 00:01:32]} 22. Kd2 {[%clk 00:39:22]} {[%emt 00:00:18]} Qg2+
{[%clk 00:08:42]} {[%emt 00:04:23]} 23. Kc1 {[%clk 00:38:06]} {[%emt 00:01:46]}
Rbc8 {[%clk 00:07:52]} {[%emt 00:01:21]} 24. c3 {[%clk 00:36:42]} {[%emt
00:01:53]} b4 {[%clk 00:06:51]} {[%emt 00:01:32]} 25. c4 {[%clk 00:36:02]}
{[%emt 00:01:10]} Kh8 {[%clk 00:05:02]} {[%emt 00:02:20]} 26. Rhg1 {[%clk
00:35:16]} {[%emt 00:01:15]} Qxh2 {[%clk 00:04:33]} {[%emt 00:00:59]} 27. Qe7
{[%clk 00:31:32]} {[%emt 00:04:12]} Qe2 {[%clk 00:02:54]} {[%emt 00:02:11]} 28.
Qg5 {[%clk 00:30:41]} {[%emt 00:01:19]} g6 {[%clk 00:02:12]} {[%emt 00:01:13]}
29. Qf6+ {[%clk 00:30:56]} {[%emt 00:00:16]} Kg8 {[%clk 00:02:38]} {[%emt
00:00:05]} 30. Bxf7+ {[%clk 00:30:55]} {[%emt 00:00:30]} Rxf7 {[%clk 00:03:06]}
{[%emt 00:00:02]} 31. Qxf7+ {[%clk 00:30:58]} {[%emt 00:00:27]} Kh8 {[%clk
00:03:30]} {[%emt 00:00:07]} 32. Qf6+ {[%clk 00:31:13]} {[%emt 00:00:14]} Kg8
{[%clk 00:02:35]} {[%emt 00:01:25]} 33. Qe6+ {[%clk 00:31:31]} {[%emt
00:00:10]} Kg7 {[%clk 00:02:17]} {[%emt 00:00:49]} 34. Qxc8 {[%clk 00:31:48]}
{[%emt 00:00:14]} 1-0